[Event "1st Anfield Cup 2022"]
[Site "Kyiv"]
[Date "2022.09.24"]
[Round "4.6"]
[White "Dmitrenko, Viktor"]
[Black "Golichenko, Ilija"]
[Result "1/2-1/2"]
[ECO "E18"]
[WhiteElo "2266"]
[BlackElo "2413"]
[Annotator "TA"]
[PlyCount "100"]
[EventDate "2022.09.20"]
[EventType "swiss"]
[EventCountry "UKR"]
[SourceTitle "playchess.com"]
[Source "ChessBase"]
[SourceQuality "1"]
[TimeControl "900+10"]

{[%evp 18,100,23,25,99,99,100,113,105,92,86,85,182,112,114,106,134,110,113,97,91,91,108,107,101,101,236,218,234,105,98,102,93,107,106,104,260,128,131,117,126,95,102,99,97,88,86,80,59,0,71,0,48,16,104,27,69,0,0,-39,-33,-40,0,-22,0,0,0,0,0,0,0,0,0,0,0,0,0,0,0,0,0,0,0,0,0]} 1. Nf3 {[%emt 0:00:07]} Nf6 {[%emt 0:00:02]} 2. c4 {[%emt 0:00:14]} b6 {[%emt 0:00:21]} 3. g3 {[%emt 0:00:07]} Bb7 {[%emt 0:00:01]} 4. Bg2 {[%emt 0:00:01]} e6 {[%emt 0:00:02]} 5. O-O {[%emt 0:00:05]} Be7 {[%emt 0:00:08]} 6. d4 {[%emt 0:00:03]} O-O {[%emt 0:00:11]} 7. Nc3 {[%emt 0:00:07]} Ne4 {[%emt 0:01:12]} 8. Bd2 {[%emt 0:00:19]} Nxc3 {[%emt 0:01:05]} 9. Bxc3 {[%emt 0:00:01]} d5 {[%emt 0:00:01] has lost popularity (9...Be4).} 10. Ne5 {[%emt 0:00:29] [#]} c5 $146 {[%emt 0:00:28] E18: Queen's Indian: Old Main Line (4 g3 Bb7 5 Bg2 Be7 6 0-0 0-0 7 Nc3).} (10... a5 $11) ({Predecessor:} 10... Nd7 11. cxd5 exd5 12. Qc2 Re8 13. Rfd1 Bd6 14. Nc4 Bf8 15. Rac1 Qe7 16. e3 Nf6 17. Ne5 a5 18. a3 {0-1 (52) Xu,Y (2545)-Bu,X (2725) China 2018}) 11. cxd5 {[%emt 0:00:06]} exd5 {[%emt 0:00:04]} 12. dxc5 {[%emt 0:00:30]} Bxc5 {[%emt 0:02:26] White is better.} 13. Qa4 {[%emt 0:04:34]} Nc6 {[%emt 0:06:14]} 14. Nd3 {[%emt 0:03:16] White is much more active. The black rooks are badly placed.} Qd7 {[%emt 0:02:34]} (14... d4 $16 {was called for.}) 15. Rad1 {[%emt 0:02:34]} (15. Rfd1 $1 $18) 15... d4 $16 {[%emt 0:00:39]} 16. b4 $36 {[%emt 0:01:41][%cal Bb2b4,Bb4b5][%mdl 2080] Black is under strong pressure.} Be7 {[%emt 0:00:48]} (16... dxc3 $2 17. Nxc5 Qg4 18. Nxb7 $18) 17. b5 {[%emt 0:01:22]} Na5 {[%emt 0:00:39]} (17... dxc3 $2 18. bxc6 Qe8 19. Ne5 $18) 18. Qxd4 {[%emt 0:00:26]} (18. Ne5 {with more complications.} Qe6 19. Qxd4 Bf6 20. Qd7) 18... Qxd4 {[%emt 0:00:04]} 19. Bxd4 {[%emt 0:00:01]} Bxg2 {[%emt 0:00:04]} 20. Kxg2 {[%emt 0:00:01]} Rfd8 {[%emt 0:00:10]} 21. Bc3 {[%emt 0:00:40]} Rac8 {[%emt 0:00:23]} (21... Nb7 $16) 22. Bxa5 $18 {[%emt 0:00:18]} bxa5 {[%emt 0:00:01]} 23. Rc1 {[%emt 0:00:03] Inhibits Rc2.} (23. Ne5 $1 $18 {has better winning chances.}) 23... Ba3 $16 {[%emt 0:00:17]} 24. Rc6 {[%emt 0:00:38]} Rxc6 {[%emt 0:01:01]} 25. bxc6 {[%emt 0:00:01][%mdl 4096] Endgame aiming for Rb1. KRB-KRN} Rc8 {[%emt 0:00:01]} 26. Rb1 {[%emt 0:00:20] Strongly threatening Rb5.} f6 $2 {[%emt 0:00:12] [#]} (26... Rxc6 $16 27. Rb5 a6 28. Rxa5 Be7) 27. Rb7 {[%emt 0:00:20]} (27. Rb5 $1 $18) 27... Rxc6 {[%emt 0:00:01]} 28. Rxa7 {[%emt 0:00:02]} Bb4 {[%emt 0:00:19]} 29. Kf3 {[%emt 0:00:04]} Rc2 {[%emt 0:00:09]} 30. a3 {[%emt 0:00:35]} Bd2 {[%emt 0:00:13]} 31. e3 {[%emt 0:00:23]} Ra2 {[%emt 0:00:04]} 32. Nc5 {[%emt 0:00:23]} Be1 {[%emt 0:00:17]} 33. Nd3 {[%emt 0:00:03]} ({White should try} 33. Ra8+ $14 Kf7 34. Ra7+ Kg8 35. Nd3) 33... Bc3 {[%emt 0:00:07]} (33... Bd2 $1 $11 {remains equal.}) 34. Nc5 {[%emt 0:00:35]} (34. h4 $16) 34... Rxa3 {[%emt 0:00:01]} (34... Be1 $11) 35. Ke4 {[%emt 0:00:03]} g6 {[%emt 0:00:19] [#]} (35... Ra2 $11 {keeps the balance.}) 36. g4 {[%emt 0:00:05]} (36. Kd5 $1 $16) 36... Be1 {[%emt 0:00:09]} 37. f4 {[%emt 0:00:22]} (37. Nd7 $14 Kf7 38. f4) 37... Bd2 $11 {[%emt 0:00:02]} 38. Nd7 {[%emt 0:00:16]} Rxe3+ {[%emt 0:00:09]} 39. Kd5 {[%emt 0:00:03]} Bc3 {[%emt 0:00:05]} 40. g5 {[%emt 0:00:08] The position is equal.} f5 {[%emt 0:00:26]} 41. Ne5 {[%emt 0:00:11]} Bxe5 {[%emt 0:00:16]} 42. fxe5 {[%emt 0:00:01] KR-KR} f4 {[%emt 0:00:04]} 43. Ke6 {[%emt 0:00:09] Kf6 would kill now.} Rb3 {[%emt 0:00:10]} 44. Ra8+ {[%emt 0:00:19]} Kg7 {[%emt 0:00:03]} 45. Ra7+ {[%emt 0:00:01]} Kg8 {[%emt 0:00:01]} 46. Ra8+ {[%emt 0:00:20]} Kg7 {[%emt 0:00:01]} 47. Ra7+ {[%emt 0:00:01]} Kg8 {[%emt 0:00:00]} 48. Ra8+ {[%emt 0:00:09]} Kg7 {[%emt 0:00:01]} 49. Ra7+ {[%emt 0:00:01]} Kg8 {[%emt 0:00:01]} 50. Kf6 {White threatens Ra8+ and mate.} Rb8 {Against Ra8. Blacks defense is rewarded with a draw.  Weighted Error Value: White=0.23 (precise) /Black=0.28 (precise)} 1/2-1/2

[Event "1st Anfield Cup 2022"]
[Site "Kyiv"]
[Date "2022.09.25"]
[Round "5.1"]
[White "Pavlov, Sergey"]
[Black "Vysochin, Spartak"]
[Result "1/2-1/2"]
[ECO "A21"]
[WhiteElo "2333"]
[BlackElo "2512"]
[Annotator "TA"]
[PlyCount "93"]
[EventDate "2022.09.20"]
[EventType "swiss"]
[EventCountry "UKR"]
[SourceTitle "playchess.com"]
[Source "ChessBase"]
[SourceQuality "1"]
[TimeControl "900+10"]

{[%evp 9,93,23,33,26,16,32,37,31,38,24,0,0,18,0,0,0,0,0,0,0,30,32,18,10,21,25,18,6,52,60,50,0,0,0,-7,-10,0,-93,-98,-96,-12,-11,0,0,-6,-16,-7,-42,-15,-9,8,15,15,0,0,0,-5,-18,-16,-25,-18,-20,-19,-17,-23,-590,-583,-583,-590,-583,-576,-452,-514,-576,-576,-568,-547,-507,-507,-507,0,-470,0,0,0,-405]} 1. c4 {[%emt 0:00:03]} e5 {[%emt 0:00:07]} 2. Nc3 {[%emt 0:00:03]} Bb4 {[%emt 0:00:07]} 3. Qc2 {[%emt 0:00:02]} Ne7 {[%emt 0:03:23]} 4. Nf3 {[%emt 0:00:29]} d6 {[%emt 0:00:43]} 5. Qa4+ {[%emt 0:03:40]} Nbc6 {[%emt 0:00:40] [#]} 6. Nd5 $146 {[%emt 0:00:02] A21: English Opening: 1...e5 2 Nc3.} ({Predecessor:} 6. e4 Bd7 7. Qb3 O-O 8. Bd3 Bg4 9. Be2 f5 10. c5+ Kh8 11. cxd6 Qxd6 12. exf5 Nxf5 {0-1 (24) Giessing,K (1520)-Mucur,Y ICCF email 2016}) 6... Bc5 {[%emt 0:00:24]} 7. b4 {[%emt 0:00:02]} Bb6 {[%emt 0:02:36]} 8. Nxb6 {[%emt 0:00:02] White is slightly better.} cxb6 {[%emt 0:00:01]} 9. Bb2 {[%emt 0:00:23]} (9. b5 $5 {[%cal Rb5c6]} Nb8 10. d4 $14) 9... Bg4 {[%emt 0:01:18]} 10. e3 {[%emt 0:01:49]} O-O {[%emt 0:01:25]} 11. b5 {[%emt 0:03:42]} Na5 {[%emt 0:00:40]} 12. c5 {[%emt 0:00:10]} Bxf3 {[%emt 0:00:25]} 13. cxd6 {[%emt 0:00:01]} Qxd6 {[%emt 0:00:23]} 14. gxf3 {[%emt 0:00:02]} Rfd8 {[%emt 0:00:20][%csl Gd8][%cal Rd6d2]} 15. Rd1 {[%emt 0:00:17]} Rac8 {[%emt 0:01:32][%cal Ba8c8,Bc8c2,Bc2a2][%mdl 32]} 16. Be2 {[%emt 0:00:36]} Nd5 {[%emt 0:01:24]} 17. Rg1 {[%emt 0:01:00][%cal Of3f4]} f6 {[%emt 0:00:02]} 18. Kf1 {[%emt 0:02:55]} ({Much weaker is} 18. Qg4 g6 $11) 18... Qb4 {[%emt 0:00:36]} (18... Qe6 $11 {should be considered.}) 19. Qxb4 $14 {[%emt 0:01:26]} Nxb4 {[%emt 0:00:01]} 20. f4 {[%emt 0:00:01]} (20. Rg4 $14 Nd3 21. Bc3) 20... Rc2 {[%emt 0:00:35]} 21. Ba3 {[%emt 0:00:26]} Nd5 $36 {[%emt 0:01:01][%mdl 2048] White is under pressure.} 22. fxe5 {[%emt 0:00:38]} fxe5 {[%emt 0:00:01]} 23. Rg5 {[%emt 0:00:52]} (23. Rb1 $11) 23... Rxa2 $17 {[%emt 0:00:22]} 24. Bc1 {[%emt 0:00:00]} e4 {[%emt 0:00:31]} (24... Nf6 $1 $17 {And now ...Rc8 would win.} 25. Ke1 Kh8) 25. Bg4 $11 {[%emt 0:00:01] Against Rc8} Kf7 {[%emt 0:00:17] Against Be6+. ...Nf6 is the strong threat.} 26. Re5 {[%emt 0:00:19][%cal Bg5e5,Be5e4,Be4f4,Bf4a4][%mdl 32]} Rd6 {[%emt 0:00:15] Inhibits Be6+. Threatens to win with ...Nf6.} 27. Rxe4 {[%emt 0:00:10]} Nf6 {[%emt 0:00:09] Pair of Knights!} 28. Rf4 {[%emt 0:00:04]} Nb3 {[%emt 0:00:05] Black wants to play ...g5.} (28... g5 $5 {[%cal Rg5f4]} 29. Rf3 h5 30. Bxh5+ Kg7 $11) 29. Be2 {[%emt 0:00:23]} Nxc1 {[%emt 0:00:09]} 30. Rxc1 {[%emt 0:00:11] aiming for Bc4+.} Raxd2 {[%emt 0:00:02]} 31. Ra4 {[%emt 0:00:13]} Rb2 {[%emt 0:00:10]} 32. Rxa7 {[%emt 0:00:11]} Rdd2 {[%emt 0:00:03]} 33. Rxb7+ {[%emt 0:00:06]} Kg6 {[%emt 0:00:02]} 34. Re1 {[%emt 0:00:02]} Nd5 {[%emt 0:00:23]} 35. h4 $1 {[%emt 0:00:25]} Nc3 {[%emt 0:00:22][%csl LRb5,LRe2][%cal Rc3e2]} 36. Rxb6+ {[%emt 0:00:01]} Kf5 {[%emt 0:00:02][%cal Rc3e2]} 37. Bc4 {[%emt 0:00:20][%mdl 8192]} (37. Rc6 $1 $11 {and White stays safe.} Nxe2 38. Rc4) 37... Rxf2+ $19 {[%emt 0:00:03]} 38. Kg1 {[%emt 0:00:00]} Rg2+ {[%emt 0:00:09]} 39. Kh1 {[%emt 0:00:01]} Rh2+ {[%emt 0:00:12]} 40. Kg1 {[%emt 0:00:00]} Rbg2+ {[%emt 0:00:11]} 41. Kf1 {[%emt 0:00:01]} Kg4 {[%emt 0:00:18]} 42. Rb7 {[%emt 0:00:23]} g6 {[%emt 0:00:01]} 43. e4 {[%emt 0:00:10]} Rf2+ {[%emt 0:00:23]} 44. Kg1 {[%emt 0:00:01]} Rhg2+ $1 {[%emt 0:00:14]} 45. Kh1 {[%emt 0:00:01] [#]} Rh2+ $2 {[%emt 0:00:06]} (45... Nxe4 $1 $19 {[%mdl 512] ( -> ...Ng3#)} 46. Rxe4+ Kf3 47. Rf7+ Kxe4 48. Rxh7 Rh2+ 49. Kg1 Rfg2+ 50. Kf1 Rc2) 46. Kg1 $11 {[%emt 0:00:01]} Rhg2+ $2 {[%emt 0:00:15][%mdl 8192]} (46... Rfg2+ $11 47. Kf1 {[#]} Nxe4 $1 {[%mdl 512]} 48. Rxe4+ Kf3 49. Rf7+ Kxe4 50. Re7+ Kd4) 47. Kh1 {[%emt 0:00:01][%mdl 32768] Weighted Error Value: White=0.20 (precise) /Black=0.27 (precise) . An unexpected result.} 1/2-1/2

[Event "1st Anfield Cup 2022"]
[Site "Kyiv"]
[Date "2022.09.25"]
[Round "5.2"]
[White "Maliutin, Oleksandr"]
[Black "Bakhmatsky, Vladislav"]
[Result "0-1"]
[ECO "E00"]
[WhiteElo "2232"]
[BlackElo "2468"]
[Annotator "TA"]
[PlyCount "54"]
[EventDate "2022.09.20"]
[EventType "swiss"]
[EventCountry "UKR"]
[SourceTitle "playchess.com"]
[Source "ChessBase"]
[SourceQuality "1"]
[TimeControl "900+10"]

{[%evp 11,54,0,0,-14,-20,-21,-11,-21,-19,-38,-14,-18,0,0,0,0,0,0,1,0,0,0,0,-36,-35,-94,-90,-320,-307,-306,-304,-306,-297,-385,-392,-430,-422,-463,-437,-749,-421,-2069,-2073,-5502,-5150]} 1. d4 {[%emt 0:00:02]} Nf6 {[%emt 0:00:14]} 2. c4 {[%emt 0:00:02]} e6 {[%emt 0:02:01]} 3. Nc3 {[%emt 0:00:19]} d5 {[%emt 0:00:01]} 4. e3 {[%emt 0:00:09]} Be7 {[%emt 0:00:31]} 5. Nf3 {[%emt 0:00:03]} O-O {[%emt 0:00:02]} 6. cxd5 {[%emt 0:00:26]} exd5 {[%emt 0:00:53]} 7. Be2 {[%emt 0:02:10] D35: Queen's Gambit Declined: Exchange Variation.} c6 {[%emt 0:02:13]} 8. Ne5 {[%emt 0:01:19]} Nbd7 {[%emt 0:05:35] [#]} 9. f4 $146 {[%emt 0:02:19] The position is equal.} ({Predecessor:} 9. Nxd7 Qxd7 10. O-O Bd6 11. Bf3 Bc7 12. e4 dxe4 13. Nxe4 Nxe4 14. Bxe4 Qd6 15. g3 {½-½ (22) Richter,T (1620)-Leuschner,S (1374) Passau 2000}) 9... Nxe5 {[%emt 0:00:02]} 10. fxe5 {[%emt 0:00:01]} Ne8 {[%emt 0:00:01]} (10... Nd7 $5 {[%cal Rf7f6]}) 11. O-O {[%emt 0:02:16]} f6 {[%emt 0:00:01]} 12. e4 {[%emt 0:01:05]} fxe5 {[%emt 0:01:13]} 13. Rxf8+ {[%emt 0:00:19]} Bxf8 {[%emt 0:00:02]} 14. exd5 {[%emt 0:00:23]} exd4 {[%emt 0:03:18]} 15. Qxd4 {[%emt 0:00:53]} Be6 {[%emt 0:00:01]} 16. Bf3 {[%emt 0:04:18]} Nc7 {[%emt 0:00:05][%cal Rc7d5]} 17. Bf4 {[%emt 0:01:35] [#] Bxc7 is the strong threat.} (17. Be3 $5 {[%cal Rd5e6]} Nxd5 18. Rd1 $11) 17... Nxd5 {[%emt 0:00:04]} 18. Rd1 {[%emt 0:00:04]} (18. Nxd5 $15 Bxd5 19. Rd1) 18... Qa5 $17 {[%emt 0:00:21] Threatens to win with ...Bc5.} 19. Qe4 $2 {[%emt 0:00:24] White does not recover from this.} ({Don't blunder} 19. Nxd5 $2 Bc5 20. Qxc5 Qxc5+ $19) (19. Bxd5 $17 Bxd5 20. Qe5 (20. Nxd5 $2 Bc5 $19)) 19... Nxf4 $19 {[%emt 0:00:09]} 20. Qxf4 {[%emt 0:00:01] [#]} Qb6+ $1 {[%emt 0:00:03]} 21. Kh1 {[%emt 0:00:03]} Qxb2 {[%emt 0:00:02]} 22. Ne4 {[%emt 0:00:05]} Bxa2 {[%emt 0:01:00]} 23. h4 {[%emt 0:00:04]} h6 {[%emt 0:00:31] Black is clearly winning.} 24. Rd7 {[%emt 0:00:20]} Be6 {[%emt 0:00:12]} 25. Rc7 {[%emt 0:00:19]} (25. Rd2 $142 Qb4 26. Qe3) 25... Rc8 {[%emt 0:00:06]} 26. Bh5 {[%emt 0:00:19]} (26. Bg4 $142 Bxg4 27. Qf7+ Kh8 28. Rxc8 Bxc8 29. Qxf8+ Kh7 30. Qxc8 Qb1+ 31. Kh2 Qxe4 32. Qxb7) 26... Rxc7 {[%emt 0:00:07]} 27. Qxc7 {[%emt 0:00:03]} Qb1+ {[%emt 0:00:03] Weighted Error Value: White=1.11/Black=0.34} 0-1

[Event "1st Anfield Cup 2022"]
[Site "Kyiv"]
[Date "2022.09.25"]
[Round "5.3"]
[White "Malakhatko, Vadim"]
[Black "Golubev, Mikhail"]
[Result "0-1"]
[ECO "E97"]
[WhiteElo "2448"]
[BlackElo "2461"]
[Annotator "TA"]
[PlyCount "90"]
[EventDate "2022.09.20"]
[EventType "swiss"]
[EventCountry "UKR"]
[SourceTitle "playchess.com"]
[Source "ChessBase"]
[SourceQuality "1"]
[TimeControl "900+10"]

{[%evp 22,90,25,25,23,25,22,5,11,0,0,0,-6,-13,0,-13,0,-22,-29,-32,-9,-39,0,-35,0,-42,37,20,38,-24,-19,-19,-19,-18,-20,0,-16,-75,0,0,0,0,0,-31,-21,-129,-151,-128,-146,-139,-107,-1079,-1010,-6399,-6399,-6399,-6399,-6343,-6336,-5385,-2341,-29974,-29975,-29976,-29977,-29977,-29978,-29980,-29981,-29980,-29980]} 1. d4 {[%emt 0:00:06] ChessBase II} Nf6 {[%emt 0:00:02]} 2. c4 {[%emt 0:00:03]} g6 {[%emt 0:00:01]} 3. Nc3 {[%emt 0:00:02]} Bg7 {[%emt 0:00:01]} 4. e4 {[%emt 0:00:03]} d6 {[%emt 0:00:02]} 5. Nf3 {[%emt 0:00:02][%cal Bg1f3,Bf3e1,Be1d3,Bd3f2][%mdl 32]} O-O {[%emt 0:00:04]} 6. Be2 {[%emt 0:00:00]} e5 {[%emt 0:00:00]} 7. O-O {[%emt 0:00:00]} Nc6 {[%emt 0:00:00]} 8. d5 {[%emt 0:00:00]} Ne7 {[%emt 0:00:02]} 9. a4 {[%emt 0:00:03]} a5 {[%emt 0:00:16]} 10. Ne1 {[%emt 0:00:04]} Nd7 {[%emt 0:00:20]} 11. Nd3 {[%emt 0:00:04]} f5 {[%emt 0:00:17]} 12. f3 {[%emt 0:00:03]} b6 {[%emt 0:02:03] E97: King's Indian: Classical Main Line (6...e5 7 0-0 Nc6): 8 Be3 and 8 d5 Ne7, not 9 Ne1.} 13. Nb5 {[%emt 0:01:14] [#]} Nc5 $146 {[%emt 0:02:01]} ({Predecessor:} 13... Kh8 14. Bd2 Ng8 15. b4 axb4 16. Bxb4 Bh6 17. exf5 gxf5 18. f4 e4 19. Bc3+ Bg7 20. Bxg7+ Kxg7 {1-0 (40) Wojtaszek,R (2746)-Maze,S (2572) Montpellier 2015 CBM 166 Extra [ChessBase II]}) 14. Nf2 {[%emt 0:00:09]} Kh8 {[%emt 0:00:45] The position is equal.} 15. Bd2 {[%emt 0:00:13]} Ng8 {[%emt 0:00:07]} 16. b4 {[%emt 0:00:06]} axb4 {[%emt 0:00:04]} 17. Bxb4 {[%emt 0:00:02]} Nf6 {[%emt 0:01:25][%cal Rf5e4]} 18. Qc2 {[%emt 0:00:34]} fxe4 {[%emt 0:00:34]} 19. fxe4 {[%emt 0:00:17]} Bh6 {[%emt 0:00:21]} 20. Ra3 {[%emt 0:00:46] Inhibits Be3.} Bd7 {[%emt 0:00:36]} 21. Bf3 {[%emt 0:00:56]} (21. Bxc5 $5 bxc5 22. a5 $11) 21... Bf4 {[%emt 0:01:34]} 22. Rfa1 {[%emt 0:03:28]} h5 {[%emt 0:00:59]} 23. Qe2 {[%emt 0:00:05]} Kg7 {[%emt 0:00:57]} ({Black should play} 23... Nb7 $1 $15) 24. a5 $14 {[%emt 0:01:49]} bxa5 {[%emt 0:00:32]} 25. Bxa5 {[%emt 0:00:34] [#]} (25. Bxc5 $14 Bxb5 26. cxb5 dxc5 27. Nd3) 25... Rxa5 $1 $11 {[%emt 0:02:51]} 26. Rxa5 {[%emt 0:00:03]} Nb3 {[%emt 0:00:02][%csl LRa1,LRa5]} 27. Ra8 {[%emt 0:03:00]} Qxa8 {[%emt 0:00:01]} 28. Rxa8 {[%emt 0:00:02]} Rxa8 {[%emt 0:00:02]} 29. Qb2 {[%emt 0:00:16] [#]} (29. Nd1 $11) 29... Bxb5 {[%emt 0:00:22]} (29... Be3 $1 $17 30. h3 (30. Qxb3 $2 Ra1+ 31. Bd1 Ng4 $19) 30... Nd2) 30. cxb5 {[%emt 0:04:41]} Nd4 {[%emt 0:00:04]} 31. Qc3 {[%emt 0:00:07]} Nxb5 {[%emt 0:00:33] Pair of Knights!} 32. Qb2 {[%emt 0:00:52]} Be3 {[%emt 0:00:23][%cal Oe3d4]} 33. g3 {[%emt 0:00:08]} (33. h4 $11 {remains equal.}) 33... Nd4 $17 {[%emt 0:00:26]} 34. Kg2 {[%emt 0:00:03]} Bxf2 {[%emt 0:00:26] Black has more active pieces.} 35. Kxf2 {[%emt 0:00:05]} Rf8 {[%emt 0:00:05] Threatens to win with ...Ng4+.} 36. Kg2 $2 {[%emt 0:00:20][%mdl 8192] Now White is beyond hope.} (36. Bg2 $17) 36... Nxf3 $19 {[%emt 0:00:04]} 37. Kxf3 {[%emt 0:00:01][%mdl 4096] Endgame [#] KQ-KRN} Ng4+ $1 {[%emt 0:00:09]} 38. Kg2 {[%emt 0:00:01]} Rf2+ {[%emt 0:00:39]} 39. Qxf2 {[%emt 0:00:02]} Nxf2 {[%emt 0:00:01]} 40. Kxf2 {[%emt 0:00:01] KP-KP} Kf6 {[%emt 0:00:31]} 41. h4 {[%emt 0:00:02]} Ke7 {[%emt 0:00:09] Black mates.} 42. Ke3 {[%emt 0:00:00]} Kd7 {[%emt 0:00:03]} 43. Kd3 {[%emt 0:00:01]} c6 {[%emt 0:00:20]} 44. dxc6+ {[%emt 0:00:12]} Kxc6 {[%emt 0:00:01]} 45. Kc4 {[%emt 0:00:01]} d5+ {Weighted Error Value: White=0.68/Black=0.09 (flawless)} 0-1

[Event "1st Anfield Cup 2022"]
[Site "Kyiv"]
[Date "2022.09.25"]
[Round "5.4"]
[White "Andreev, Eduard"]
[Black "Sydoryka, Vladyslav"]
[Result "1-0"]
[ECO "B12"]
[WhiteElo "2413"]
[BlackElo "2278"]
[Annotator "TA"]
[PlyCount "69"]
[EventDate "2022.09.20"]
[EventType "swiss"]
[EventCountry "UKR"]
[SourceTitle "playchess.com"]
[Source "ChessBase"]
[SourceQuality "1"]
[TimeControl "900+10"]

{[%evp 13,69,31,52,47,72,8,4,11,14,19,19,10,8,8,15,14,10,7,17,16,12,10,9,9,76,76,80,89,81,87,76,76,75,76,154,154,160,160,239,245,259,250,370,204,546,575,544,570,633,627,610,595,5808,5722,5622,5622,5622,1680]} 1. e4 {[%emt 0:00:02]} c6 {[%emt 0:00:01][%cal Bc7c6,Bc6c5][%mdl 32]} 2. d4 {[%emt 0:00:02]} d5 {[%emt 0:00:01]} 3. e5 {[%emt 0:00:01]} Bf5 {[%emt 0:00:02]} 4. Nf3 {[%emt 0:00:02]} e6 {[%emt 0:00:02]} 5. Be2 {[%emt 0:00:02]} c5 {[%emt 0:00:03]} 6. Be3 {[%emt 0:00:03]} Qb6 {[%emt 0:00:02] is the new trend.} 7. Nc3 {[%emt 0:00:05]} Nc6 {[%emt 0:00:02]} ({Resist} 7... Qxb2 8. Nb5 $16) 8. O-O {[%emt 0:00:09] B12: Caro-Kann: Advance Variation.} Qxb2 {[%emt 0:00:06]} 9. Qe1 {[%emt 0:00:10]} (9. Nb5 $16 {Threatens to win with Nc7+.} Rc8 10. dxc5 Qxc2 11. Qxc2 Bxc2 12. Nfd4 Nxd4 13. Bxd4) 9... cxd4 $11 {[%emt 0:00:04]} ({Don't do} 9... Bxc2 10. dxc5 Bg6 11. a3 $16) 10. Bxd4 {[%emt 0:00:05] The position is equal.} Nxd4 {[%emt 0:00:29]} (10... Qxc2 $2 11. Rc1 Qb2 12. Nxd5 $1 {[%mdl 512]} Qxc1 13. Nc7+ Kd7 14. Qxc1 $18) (10... Bxc2 $2 11. Nb5 Nxd4 12. Nfxd4 $18) 11. Nxd4 {[%emt 0:00:03]} Bb4 {[%emt 0:00:05]} 12. Rb1 {[%emt 0:00:19]} Bxc3 {[%emt 0:00:25] This bishop pair is nice.} 13. Rxb2 {[%emt 0:00:03]} Bxe1 {[%emt 0:00:03]} 14. Rxe1 {[%emt 0:00:04]} b6 {[%emt 0:00:14]} 15. h4 {[%emt 0:00:21]} h5 {[%emt 0:00:21] Against g4} 16. Nxf5 {[%emt 0:00:12]} exf5 {[%emt 0:00:02]} 17. c4 {[%emt 0:00:14]} Ne7 {[%emt 0:06:11]} 18. Rd2 {[%emt 0:00:19]} Rd8 {[%emt 0:04:50]} (18... O-O-O $11 {remains equal.}) 19. cxd5 $1 $16 {[%emt 0:01:00] White is more active. Black is now going downhill.} Rxd5 {[%emt 0:00:08]} 20. Red1 {[%emt 0:00:06]} Rxd2 {[%emt 0:00:08]} 21. Bb5+ {[%emt 0:00:02]} Kf8 {[%emt 0:00:54]} 22. Rxd2 {[%emt 0:00:03][%cal Rd2d8][%mdl 4096] [#] Endgame KRB-KRN} Ng6 $146 {[%emt 0:00:48] [#]} ({Predecessor:} 22... g5 23. Rd8+ Kg7 24. Rd7 Ng6 25. e6 Kf6 26. exf7 gxh4 27. Rxa7 Ne5 28. Rb7 Nxf7 29. Rxb6+ {½-½ (99) Kovchan,A (2574)-Bryakin,M (2481) Novi Sad 2022}) 23. f4 $1 {[%emt 0:02:21]} Ke7 {[%emt 0:00:01]} ({Black should play} 23... a6 24. Bxa6 Ke7) 24. Rd7+ {[%emt 0:01:59]} Ke6 {[%emt 0:00:00]} 25. g3 {[%emt 0:00:02]} Rc8 {[%emt 0:01:38]} (25... a6 $16 {was worth a try.}) 26. Rxa7 $18 {[%emt 0:00:04] Hoping for Bd7+.} Rc3 {[%emt 0:00:13]} 27. Kf2 {[%emt 0:01:29] Black must now prevent Bd7+.} Ne7 {[%emt 0:01:31]} (27... f6 {was called for.} 28. Rxg7 Nf8 29. exf6 (29. Rg8 Kf7 $18) 29... Kxf6) 28. Ba4 {[%emt 0:00:47]} (28. Bd7+ $142 Kd5 29. Ba4) 28... Nc6 $2 {[%emt 0:01:11]} (28... Nd5 {is a better chance.} 29. Bd7+ Ke7 30. Bxf5+ Kf8) 29. Rc7 {[%emt 0:02:59] aiming for Bb3+. White is clearly winning.} Kd5 {[%emt 0:00:01]} 30. Rxf7 {[%emt 0:01:21]} Nd4 {[%emt 0:00:09]} 31. Rd7+ {[%emt 0:00:13]} Ke4 {[%emt 0:00:19]} 32. e6 {[%emt 0:00:02][%cal Be5e6,Be6e7][%mdl 32]} Rf3+ {[%emt 0:00:14]} 33. Kg2 {[%emt 0:00:03] e7 would kill now.} Re3 {[%emt 0:00:06]} 34. e7 {[%emt 0:00:33]} Kd3 {[%emt 0:00:13] [#] Prevents Bc2+.} 35. Rxd4+ $1 {[%mdl 512] Weighted Error Value: White=0.11 (very precise) /Black=0.40} 1-0